Workbook

Sheet Dashboard
A1: Débito | C1: =SUM(Cuentas!G2+Cuentas!G3+Cuentas!G4+Cuentas!G5) -> 624.89

Sheet Cuentas
A1: Id_Cuenta | B1: Nombre_cuenta | C1: Tipo_cuenta | D1: Banco_o_entidad | E1: Saldo_inicial | F1: Fecha_saldo_inicial | G1: Saldo_actual | H1: Dia_corte | I1: Dia_pago | J1: Limite_credito
A2: =LEFT(tblCuentas[[#This Row],[Tipo_cuenta]],2)&"_"&LEFT(tblCuentas[[#This Row],[Nombre_cuenta]],5) -> Ef_Carte | B2: Cartera | C2: Efectivo | E2: 0 | F2: 2025-12-01 | G2: =tblCuentas[[#This Row],[Saldo_inicial]]+SUMIFS(tblMovimientos[Monto],tblMovimientos[Cuenta_destino],tblCuentas[[#This Row],[Id_Cuenta]])-SUMIFS(tblMovimientos[Monto],tblMovimientos[Cuenta_origen],tblCuentas[[#This Row],[Id_Cuenta]]) -> 0
A3: =LEFT(tblCuentas[[#This Row],[Tipo_cuenta]],2)&"_"&LEFT(tblCuentas[[#This Row],[Nombre_cuenta]],5) -> Dé_BanCo | B3: BanCoppel | C3: Débito | D3: Coppel | E3: 0 | F3: 2025-12-01 | G3: =tblCuentas[[#This Row],[Saldo_inicial]]+SUMIFS(tblMovimientos[Monto],tblMovimientos[Cuenta_destino],tblCuentas[[#This Row],[Id_Cuenta]])-SUMIFS(tblMovimientos[Monto],tblMovimientos[Cuenta_origen],tblCuentas[[#This Row],[Id_Cuenta]]) -> 0
A4: =LEFT(tblCuentas[[#This Row],[Tipo_cuenta]],2)&"_"&LEFT(tblCuentas[[#This Row],[Nombre_cuenta]],5) -> Dé_BanAz | B4: BanAzteca | C4: Débito | D4: Banco Azteca | E4: 0 | F4: 2025-12-01 | G4: =tblCuentas[[#This Row],[Saldo_inicial]]+SUMIFS(tblMovimientos[Monto],tblMovimientos[Cuenta_destino],tblCuentas[[#This Row],[Id_Cuenta]])-SUMIFS(tblMovimientos[Monto],tblMovimientos[Cuenta_origen],tblCuentas[[#This Row],[Id_Cuenta]]) -> 0
A5: =LEFT(tblCuentas[[#This Row],[Tipo_cuenta]],2)&"_"&LEFT(tblCuentas[[#This Row],[Nombre_cuenta]],5) -> Dé_Stori | B5: StoriCuenta | C5: Débito | D5: Stori | E5: 624.5 | F5: 2025-12-01 | G5: =tblCuentas[[#This Row],[Saldo_inicial]]+SUMIFS(tblMovimientos[Monto],tblMovimientos[Cuenta_destino],tblCuentas[[#This Row],[Id_Cuenta]])-SUMIFS(tblMovimientos[Monto],tblMovimientos[Cuenta_origen],tblCuentas[[#This Row],[Id_Cuenta]]) -> 624.89
A6: =LEFT(tblCuentas[[#This Row],[Tipo_cuenta]],2)&"_"&LEFT(tblCuentas[[#This Row],[Nombre_cuenta]],5) -> Cr_DidiC | B6: DidiCard | C6: Crédito | D6: Didi | E6: 6.9 | F6: 2025-12-01 | G6: =tblCuentas[[#This Row],[Saldo_inicial]]+SUMIFS(tblMovimientos[Monto],tblMovimientos[Cuenta_destino],tblCuentas[[#This Row],[Id_Cuenta]])-SUMIFS(tblMovimientos[Monto],tblMovimientos[Cuenta_origen],tblCuentas[[#This Row],[Id_Cuenta]]) -> 6.9 | H6: 7 | I6: 15 | J6: 8000
A7: =LEFT(tblCuentas[[#This Row],[Tipo_cuenta]],2)&"_"&LEFT(tblCuentas[[#This Row],[Nombre_cuenta]],5) -> Cr_KlarC | B7: KlarCard | C7: Crédito | D7: Klar | E7: 48.2 | F7: 2025-12-01 | G7: =tblCuentas[[#This Row],[Saldo_inicial]]+SUMIFS(tblMovimientos[Monto],tblMovimientos[Cuenta_destino],tblCuentas[[#This Row],[Id_Cuenta]])-SUMIFS(tblMovimientos[Monto],tblMovimientos[Cuenta_origen],tblCuentas[[#This Row],[Id_Cuenta]]) -> 48.2 | H7: 24 | I7: 4 | J7: 2000
A8: =LEFT(tblCuentas[[#This Row],[Tipo_cuenta]],2)&"_"&LEFT(tblCuentas[[#This Row],[Nombre_cuenta]],5) -> Cr_Rappi | B8: RappiCard | C8: Crédito | D8: Rappi | E8: 24.48 | F8: 2025-12-01 | G8: =tblCuentas[[#This Row],[Saldo_inicial]]+SUMIFS(tblMovimientos[Monto],tblMovimientos[Cuenta_destino],tblCuentas[[#This Row],[Id_Cuenta]])-SUMIFS(tblMovimientos[Monto],tblMovimientos[Cuenta_origen],tblCuentas[[#This Row],[Id_Cuenta]]) -> 24.48 | H8: 15 | I8: 5 | J8: 6000
A9: =LEFT(tblCuentas[[#This Row],[Tipo_cuenta]],2)&"_"&LEFT(tblCuentas[[#This Row],[Nombre_cuenta]],5) -> Cr_Liver | B9: Liverpool | C9: Crédito | D9: Liverpool | E9: -1779.91 | F9: 2025-12-01 | G9: =tblCuentas[[#This Row],[Saldo_inicial]]+SUMIFS(tblMovimientos[Monto],tblMovimientos[Cuenta_destino],tblCuentas[[#This Row],[Id_Cuenta]])-SUMIFS(tblMovimientos[Monto],tblMovimientos[Cuenta_origen],tblCuentas[[#This Row],[Id_Cuenta]]) -> -1779.91 | H9: 16 | I9: 15 | J9: 6000
A10: =LEFT(tblCuentas[[#This Row],[Tipo_cuenta]],2)&"_"&LEFT(tblCuentas[[#This Row],[Nombre_cuenta]],5) -> Cr_Stori | B10: StoriCard | C10: Crédito | D10: Stori | E10: 89.7 | F10: 2025-12-01 | G10: =tblCuentas[[#This Row],[Saldo_inicial]]+SUMIFS(tblMovimientos[Monto],tblMovimientos[Cuenta_destino],tblCuentas[[#This Row],[Id_Cuenta]])-SUMIFS(tblMovimientos[Monto],tblMovimientos[Cuenta_origen],tblCuentas[[#This Row],[Id_Cuenta]]) -> 9.7 | H10: 27 | I10: 17 | J10: 3300

Sheet Categorias
A1: Id_Categorias | B1: Tipo | C1: Nombre_categoria | D1: Grupo
A2: =LEFT(tblCategorias[[#This Row],[Tipo]],1)&"_"&tblCategorias[[#This Row],[Nombre_categoria]] -> A_ | B2: Ahorro | H2: Categoría grande | I2: Qué incluye (ejemplos típicos)
A3: =LEFT(tblCategorias[[#This Row],[Tipo]],1)&"_"&tblCategorias[[#This Row],[Nombre_categoria]] -> G_Educación / Niños | B3: Gasto | C3: Educación / Niños | H3: Vivienda | I3: Renta o hipoteca, luz, agua, gas, internet, teléfono fijo, mantenimiento, predial, limpieza, muebles, etc.
A4: =LEFT(tblCategorias[[#This Row],[Tipo]],1)&"_"&tblCategorias[[#This Row],[Nombre_categoria]] -> G_Deudas / Créditos | B4: Gasto | C4: Deudas / Créditos | H4: Transporte / Carro | I4: Gasolina, Uber/taxi, transporte público, seguro del auto, tenencias, verificaciones, refacciones, estacionamiento, peajes
A5: =LEFT(tblCategorias[[#This Row],[Tipo]],1)&"_"&tblCategorias[[#This Row],[Nombre_categoria]] -> G_Entretenimiento / Ocio | B5: Gasto | C5: Entretenimiento / Ocio | H5: Alimentación | I5: Despensa/supermercado, restaurantes, cafeterías, comida para llevar, comida del trabajo, agua embotellada, etc.
A6: =LEFT(tblCategorias[[#This Row],[Tipo]],1)&"_"&tblCategorias[[#This Row],[Nombre_categoria]] -> G_Cuidado personal / Belleza | B6: Gasto | C6: Cuidado personal / Belleza | H6: Salud | I6: Médico, dentista, farmacia, lentes, estudios de laboratorio, seguro de gastos médicos, gimnasio, vitaminas
A7: =LEFT(tblCategorias[[#This Row],[Tipo]],1)&"_"&tblCategorias[[#This Row],[Nombre_categoria]] -> G_Ropa y calzado | B7: Gasto | C7: Ropa y calzado | H7: Educación / Niños | I7: Colegiaturas, útiles, clases extra, cursos, guardería, transporte escolar, uniformes
A8: =LEFT(tblCategorias[[#This Row],[Tipo]],1)&"_"&tblCategorias[[#This Row],[Nombre_categoria]] -> G_Ahorro e inversión | B8: Gasto | C8: Ahorro e inversión | H8: Deudas / Créditos | I8: Pago mínimo y pagos extras de tarjetas, préstamos personales, crédito hipotecario extra, crédito del carro
A9: =LEFT(tblCategorias[[#This Row],[Tipo]],1)&"_"&tblCategorias[[#This Row],[Nombre_categoria]] -> G_Regalos y donativos | B9: Gasto | C9: Regalos y donativos | H9: Entretenimiento / Ocio | I9: Netflix, Spotify, cine, salidas, bares, viajes/vacaciones, hobbies, juguetes, videojuegos
A10: =LEFT(tblCategorias[[#This Row],[Tipo]],1)&"_"&tblCategorias[[#This Row],[Nombre_categoria]] -> G_Mascotas | B10: Gasto | C10: Mascotas | H10: Cuidado personal / Belleza | I10: Peluquería, manicure, maquillaje, perfumes, cremas, ropa interior, productos de higiene personal
A11: =LEFT(tblCategorias[[#This Row],[Tipo]],1)&"_"&tblCategorias[[#This Row],[Nombre_categoria]] -> G_Impuestos | B11: Gasto | C11: Impuestos | H11: Ropa y calzado | I11: Ropa, zapatos, bolsas, accesorios (no incluye uniformes de trabajo ni niños que van en Educación)
A12: =LEFT(tblCategorias[[#This Row],[Tipo]],1)&"_"&tblCategorias[[#This Row],[Nombre_categoria]] -> G_Varios / Otros | B12: Gasto | C12: Varios / Otros | H12: Ahorro e inversión | I12: Aportaciones a Afore, fondo de emergencias, inversiones, retiro, cuenta de ahorro separada
A13: =LEFT(tblCategorias[[#This Row],[Tipo]],1)&"_"&tblCategorias[[#This Row],[Nombre_categoria]] -> G_Transferencia a terceros | B13: Gasto | C13: Transferencia a terceros | H13: Regalos y donativos | I13: Cumpleaños, bodas, Navidad, diezmos, donativos a ONGs
A14: =LEFT(tblCategorias[[#This Row],[Tipo]],1)&"_"&tblCategorias[[#This Row],[Nombre_categoria]] -> G_Vivienda | B14: Gasto | C14: Vivienda | H14: Mascotas | I14: Comida, veterinario, estética, juguetes, accesorios
A15: =LEFT(tblCategorias[[#This Row],[Tipo]],1)&"_"&tblCategorias[[#This Row],[Nombre_categoria]] -> G_Transporte / Carro | B15: Gasto | C15: Transporte / Carro | H15: Impuestos personales | I15: ISR extra, honorarios, declaración anual (lo que no se descuenta de nómina)
A16: =LEFT(tblCategorias[[#This Row],[Tipo]],1)&"_"&tblCategorias[[#This Row],[Nombre_categoria]] -> G_Alimentación | B16: Gasto | C16: Alimentación | H16: Varios / Otros | I16: Todo lo que no cabe en ninguna otra categoría (gastos imprevistos, multas, etc.)
A17: =LEFT(tblCategorias[[#This Row],[Tipo]],1)&"_"&tblCategorias[[#This Row],[Nombre_categoria]] -> G_Salud | B17: Gasto | C17: Salud
A18: =LEFT(tblCategorias[[#This Row],[Tipo]],1)&"_"&tblCategorias[[#This Row],[Nombre_categoria]] -> I_ | B18: Inversión
A19: =LEFT(tblCategorias[[#This Row],[Tipo]],1)&"_"&tblCategorias[[#This Row],[Nombre_categoria]] -> I_Ideas Frescas | B19: Ingreso | C19: Ideas Frescas
A20: =LEFT(tblCategorias[[#This Row],[Tipo]],1)&"_"&tblCategorias[[#This Row],[Nombre_categoria]] -> I_Didi Driver | B20: Ingreso | C20: Didi Driver
A21: =LEFT(tblCategorias[[#This Row],[Tipo]],1)&"_"&tblCategorias[[#This Row],[Nombre_categoria]] -> T_Transferencia Interna | B21: Transferencia | C21: Transferencia Interna
A22: =LEFT(tblCategorias[[#This Row],[Tipo]],1)&"_"&tblCategorias[[#This Row],[Nombre_categoria]] -> P_Pago_prestamo | B22: Pago_prestamo | C22: Pago_prestamo | D22: Deuda
A23: =LEFT(tblCategorias[[#This Row],[Tipo]],1)&"_"&tblCategorias[[#This Row],[Nombre_categoria]] -> I_CashBack | B23: Ingreso | C23: CashBack

Sheet Prestamos
A1: Id_Prestamo | B1: Nombre_prestamo | C1: Entidad | D1: Monto_inicial | E1: Fecha_inicio | F1: Plazo_meses | G1: Tasa_anual | H1: Pago_mensual_estimado | I1: Total_pagado | J1: Saldo_actual | K1: Fecha_fin_estimada
A2: =tblPrestamos[[#This Row],[Nombre_prestamo]]&"_"&LEFT(tblPrestamos[[#This Row],[Entidad]],2) -> DpVale_Pe | B2: DpVale | C2: Persona | D2: 5150 | E2: 2025-08-15 | F2: 5 | H2: 515 | I2: =SUMIFS(tblMovimientos[Monto],tblMovimientos[Id_Prestamo],tblPrestamos[[#This Row],[Id_Prestamo]],tblMovimientos[Tipo_mov],"Pago_prestamo") -> 3090 | J2: =tblPrestamos[[#This Row],[Monto_inicial]]-tblPrestamos[[#This Row],[Total_pagado]] -> 2060 | K2: =EDATE(tblPrestamos[[#This Row],[Fecha_inicio]],tblPrestamos[[#This Row],[Plazo_meses]]) -> 2026-01-15
A3: =tblPrestamos[[#This Row],[Nombre_prestamo]]&"_"&LEFT(tblPrestamos[[#This Row],[Entidad]],2) -> BancoAzteca_Ba | B3: BancoAzteca | C3: Banco | D3: 17849 | E3: 2025-01-13 | F3: 25 | H3: 224 | I3: =SUMIFS(tblMovimientos[Monto],tblMovimientos[Id_Prestamo],tblPrestamos[[#This Row],[Id_Prestamo]],tblMovimientos[Tipo_mov],"Pago_prestamo") -> 10304 | J3: =tblPrestamos[[#This Row],[Monto_inicial]]-tblPrestamos[[#This Row],[Total_pagado]] -> 7545 | K3: =EDATE(tblPrestamos[[#This Row],[Fecha_inicio]],tblPrestamos[[#This Row],[Plazo_meses]]) -> 2027-02-13
A4: =tblPrestamos[[#This Row],[Nombre_prestamo]]&"_"&LEFT(tblPrestamos[[#This Row],[Entidad]],2) -> MercadoPago_Ba | B4: MercadoPago | C4: Banco | D4: =1877.97*6 -> 11267.82 | E4: 2025-07-01 | F4: 6 | H4: 1877.87 | I4: =SUMIFS(tblMovimientos[Monto],tblMovimientos[Id_Prestamo],tblPrestamos[[#This Row],[Id_Prestamo]],tblMovimientos[Tipo_mov],"Pago_prestamo") -> 9389 | J4: =tblPrestamos[[#This Row],[Monto_inicial]]-tblPrestamos[[#This Row],[Total_pagado]] -> 1878.82 | K4: =EDATE(tblPrestamos[[#This Row],[Fecha_inicio]],tblPrestamos[[#This Row],[Plazo_meses]]) -> 2026-01-01

Sheet Movimientos
A1: Id_Mov | B1: Fecha | C1: Año | D1: Mes | E1: Periodo | F1: Tipo_mov | G1: Monto | H1: Id_Categoria | I1: Cuenta_origen | J1: Cuenta_destino | K1: Id_Prestamo | L1: Descripcion
A2: 1 | B2: 2025-12-01 | C2: 2025 | D2: 12 | E2: 2025-12 | F2: Pago_prestamo | G2: 10304 | H2: P_Pago_prestamo | I2: Ef_Carte | K2: BancoAzteca_Ba
A3: 2 | B3: 2025-12-01 | C3: 2025 | D3: 12 | E3: 2025-12 | F3: Ingreso | G3: 10304 | H3: I_Didi Driver | J3: Ef_Carte
A4: 3 | B4: 2025-12-01 | C4: 2025 | D4: 12 | E4: 2025-12 | F4: Pago_prestamo | G4: 3090 | H4: P_Pago_prestamo | I4: Dé_BanCo | K4: DpVale_Pe
A5: 4 | B5: 2025-12-01 | C5: 2025 | D5: 12 | E5: 2025-12 | F5: Pago_prestamo | G5: 9389 | H5: P_Pago_prestamo | I5: Dé_BanCo | K5: MercadoPago_Ba
A6: 5 | B6: 2025-12-01 | C6: 2025 | D6: 12 | E6: 2025-12 | F6: Ingreso | G6: 12479 | H6: I_Ideas Frescas | J6: Dé_BanCo
A7: 6 | B7: 2025-12-04 | C7: 2025 | D7: 12 | E7: 2025-12 | F7: Gasto | G7: 80 | H7: G_Alimentación | I7: Cr_Stori
A8: 7 | B8: 2025-12-04 | C8: 2025 | D8: 12 | E8: 2025-12 | F8: Ingreso | G8: 0.39 | H8: CashBack | J8: Dé_Stori
